[Event "World Junior U20 Open 2018"]
[Site "Gebze"]
[Date "2018.09.13"]
[Round "9.68"]
[White "Daghan, Devran"]
[Black "Nalbant, Tuna Onat"]
[Result "1-0"]
[ECO "B26"]
[WhiteElo "2004"]
[BlackElo "2241"]
[Annotator "NA"]
[PlyCount "65"]
[EventDate "2018.09.05"]
[EventType "swiss"]
[EventCountry "TUR"]
[SourceTitle "playchess.com"]
[Source "ChessBase"]
[SourceQuality "1"]
[TimeControl "40/5400+30:1800+30"]

1. e4 {[%emt 0:00:30]} c5 {[%emt 0:00:30]} 2. Nc3 {[%emt 0:00:30]} d6 {[%emt 0:00:30]} 3. g3 {[%emt 0:02:30]} Nc6 {[%emt 0:00:30]} 4. Bg2 {[%emt 0:00:30]} g6 {[%emt 0:00:30]} 5. d3 {[%emt 0:01:00]} Bg7 {[%emt 0:00:30]} 6. Be3 {[%emt 0:00:30]} e6 {[%emt 0:03:30]} 7. Qd2 {[%emt 0:00:30]} Rb8 {[%emt 0:00:30]} 8. Nh3 {[%emt 0:01:30]} b5 {[%emt 0:04:30]} 9. O-O {[%emt 0:00:30] B26: Closed Sicilian: 3 g3, lines with early Be3} Nge7 {[%emt 0:03:30]} (9... b4 10. Nd1 Qb6 11. f3 a5 12. Nf4 Nge7 13. h4 h5 14. Nh3 Qb5 15. Kh2 Bd7 16. Bf4 e5 17. Be3 d5 18. a4 {0-1 (40) Vargic,D (2400)-Jankovic,A (2528) Sibenik 2008}) 10. Rae1 {[%emt 0:06:30]} O-O {[%emt 0:06:30]} 11. Bh6 {[%emt 0:07:30]} Nd4 {[%emt 0:07:30]} 12. Bxg7 {[%emt 0:02:30]} Kxg7 {[%emt 0:00:30]} 13. Nd1 {[%emt 0:04:30]} e5 $146 {[%emt 0:09:00]} ({Predecessor:} 13... b4 14. Ne3 f5 15. c3 {½-½ (15) Konsek,P (1990)-Zeitler,H (1922) Zirndorf 1999}) 14. f4 {[%emt 0:00:30]} b4 {[%emt 0:08:30]} 15. c3 {[%emt 0:04:30]} bxc3 {[%emt 0:00:30]} 16. bxc3 {[%emt 0:00:30]} Ndc6 {[%emt 0:03:30]} 17. Ne3 {[%emt 0:36:30]} f6 {[%emt 0:00:30]} 18. g4 {[%emt 0:00:30]} Bd7 {[%emt 0:16:30]} 19. g5 {[%emt 1:00:30]} fxg5 {[%emt 0:06:30]} 20. fxg5 {[%emt 0:03:30]} Be6 {[%emt 0:08:01]} 21. Rxf8 {[%emt 0:00:30]} Qxf8 {[%emt 0:00:30]} 22. Rf1 {[%emt 0:00:30]} Qc8 {[%emt 0:00:30]} 23. Qf2 {[%emt 1:08:30]} Ng8 {[%emt 1:29:18]} 24. Qh4 {[%emt 0:00:30]} Nce7 {[%emt 0:00:30]} 25. Nf2 {[%emt 0:01:30]} Nc6 {[%emt 0:10:16]} 26. Nfg4 {[%emt 0:02:30]} Rb7 {[%emt 0:00:21] [#]} 27. Nh6 $14 {[%emt 0:01:30]} (27. Bh3 $1 $16) 27... Nxh6 {[%emt 0:00:42]} 28. Qxh6+ {[%emt 0:00:30]} Kg8 {[%emt 0:00:30]} 29. Nd5 {[%emt 0:00:30]} Qd8 {[%emt 0:02:18]} 30. Nf6+ {[%emt 0:01:30]} Kh8 {[%emt 0:00:01]} 31. Bh3 {[%emt 0:08:33]} Bxh3 {[%emt 0:00:59]} 32. Nxh7 {[%emt 0:00:29]} Bxf1 {[%emt 0:01:01]} 33. Nf6+ {[%emt 0:00:28]} 1-0

[Event "World Junior U20 Open 2018"]
[Site "Gebze"]
[Date "2018.09.13"]
[Round "9.69"]
[White "Akin, Kadir"]
[Black "Karaoglan, Doruk"]
[Result "1/2-1/2"]
[ECO "B22"]
[WhiteElo "1974"]
[BlackElo "2196"]
[Annotator "NA"]
[PlyCount "57"]
[EventDate "2018.09.05"]
[EventType "swiss"]
[EventCountry "TUR"]
[SourceTitle "playchess.com"]
[Source "ChessBase"]
[SourceQuality "1"]
[TimeControl "40/5400+30:1800+30"]

1. e4 {[%emt 0:00:30]} c5 {[%emt 0:00:30]} 2. c3 {[%emt 0:00:00]} Nf6 {[%emt 0:00:30]} 3. e5 {[%emt 0:00:00]} Nd5 {[%emt 0:00:30]} 4. d4 {[%emt 0:00:00]} cxd4 {[%emt 0:00:00]} 5. cxd4 {[%emt 0:00:00]} e6 {[%emt 0:00:00]} 6. Nf3 {[%emt 0:00:30]} b6 {[%emt 0:00:00]} 7. Bc4 {[%emt 0:00:00]} Bb7 {[%emt 0:00:00] B22: Sicilian: 2 c3} 8. Bxd5 {[%emt 0:00:00]} (8. O-O d6 9. Bg5 Be7 10. Bxe7 Nxe7 11. Nc3 O-O 12. Qe2 Ng6 13. Rad1 Nc6 14. exd6 Qxd6 15. d5 exd5 16. Bxd5 {½-½ (59) Wang,H (2709)-Andreikin,D (2712) Huaian 2017}) 8... Bxd5 {[%emt 0:00:00]} 9. Nc3 {[%emt 0:00:30]} Bb4 {[%emt 0:02:00]} 10. O-O {[%emt 0:01:00]} Bxc3 {[%emt 0:06:30]} 11. bxc3 {[%emt 0:00:30]} O-O {[%emt 0:01:30]} 12. Ba3 $146 {[%emt 0:02:30]} ({Predecessor:} 12. Qd3 f5 13. Ba3 Rf7 14. c4 Be4 15. Qe3 {0-1 (37) Krulich,R (2229)-Saravanan,V (2371) Ortisei 2013}) 12... Re8 {[%emt 0:00:30]} 13. Qd3 {[%emt 0:02:30]} Bxf3 {[%emt 0:16:30]} 14. Qxf3 {[%emt 0:00:30]} Nc6 {[%emt 0:00:30]} 15. Rfe1 {[%emt 0:02:30]} Na5 {[%emt 0:08:30]} 16. Rad1 {[%emt 0:06:30]} Nc4 {[%emt 0:06:30]} 17. Bc1 {[%emt 0:03:30]} d6 {[%emt 0:22:30]} 18. Qg4 {[%emt 0:23:00]} f5 {[%emt 0:20:41]} 19. exf6 {[%emt 0:01:30]} Qxf6 {[%emt 0:00:30]} 20. Rd3 {[%emt 0:03:30]} Qf5 {[%emt 1:29:18]} 21. Qe2 {[%emt 0:00:30]} Rac8 {[%emt 0:03:04]} 22. Rf3 {[%emt 0:00:30]} Qd5 $11 {[%emt 0:01:04]} 23. Rf4 Na5 24. Qc2 Qc4 25. Rh4 g6 26. Re3 Qd5 27. Qe2 Nc4 28. Rg3 Qf5 29. Rd3 {[%emt 0:52:30]} 1/2-1/2

[Event "World Junior U20 Open 2018"]
[Site "Gebze"]
[Date "2018.09.13"]
[Round "9.70"]
[White "Cirovic, Miroljub"]
[Black "Aydincelebi, Kagan"]
[Result "1/2-1/2"]
[ECO "D24"]
[WhiteElo "2181"]
[BlackElo "2060"]
[Annotator "NA"]
[PlyCount "61"]
[EventDate "2018.09.05"]
[EventType "swiss"]
[EventCountry "TUR"]
[SourceTitle "playchess.com"]
[Source "ChessBase"]
[SourceQuality "1"]
[TimeControl "40/5400+30:1800+30"]

1. d4 {[%emt 0:00:30] Alterman,B} d5 {[%emt 0:00:30]} 2. c4 {[%emt 0:00:00]} dxc4 {[%emt 0:00:30]} 3. Nf3 {[%emt 0:01:00]} Nf6 {[%emt 0:00:00]} 4. Nc3 {[%emt 0:00:00]} a6 {[%emt 0:00:00]} 5. e4 {[%emt 0:00:00]} b5 {[%emt 0:00:00]} 6. e5 {[%emt 0:00:30]} Nd5 {[%emt 0:00:00]} 7. a4 {[%emt 0:00:00]} e6 {[%emt 0:00:00]} 8. axb5 {[%emt 0:00:00]} Nb6 {[%emt 0:00:00]} 9. bxa6 {[%emt 0:00:30] D24: Queen's Gambit Accepted: 3 Nf3 Nf6 4 Nc3} Rxa6 {[%emt 0:00:00]} 10. Rxa6 {[%emt 0:00:00]} Nxa6 {[%emt 0:01:00]} 11. Bg5 {[%emt 0:00:00]} Qd7 {[%emt 0:01:30]} 12. Be2 {[%emt 0:01:30]} h6 {[%emt 0:07:30]} 13. Be3 {[%emt 0:01:30]} Be7 {[%emt 0:02:30]} 14. O-O {[%emt 0:00:30]} Bb7 {[%emt 0:05:30] [#]} 15. b3 $146 {[%emt 0:05:30]} ({Predecessor:} 15. Nd2 O-O 16. Bf3 Bxf3 17. Qxf3 c5 18. dxc5 Nxc5 19. Qg4 Qc7 20. Nce4 Nxe4 21. Qxe4 Rc8 22. Rc1 Bc5 23. h4 Bxe3 {½-½ (23) Nikolic,P (2655)-Van Wely,L (2645) Wijk aan Zee 1997 CBM 057 [Alterman,B]}) 15... cxb3 {[%emt 0:03:30]} 16. Qxb3 {[%emt 0:01:30]} Nb4 {[%emt 0:04:30]} 17. Bb5 {[%emt 0:08:30]} Bc6 {[%emt 0:03:30]} 18. Bxc6 {[%emt 0:00:30]} Qxc6 {[%emt 0:01:30]} 19. Rc1 {[%emt 0:00:30]} O-O {[%emt 0:12:30]} 20. Qb1 {[%emt 0:45:00]} Qd7 {[%emt 0:08:30]} 21. Qe4 {[%emt 0:02:30]} N6d5 {[%emt 0:02:30]} 22. Qg4 {[%emt 0:54:00]} Nxc3 {[%emt 1:06:00]} 23. Rxc3 {[%emt 0:00:30]} Kh7 {[%emt 0:04:30]} 24. Qe4+ {[%emt 0:01:30]} Kh8 {[%emt 0:00:30]} 25. h4 {[%emt 0:04:30]} Nd5 {[%emt 0:02:30]} 26. Rb3 {[%emt 0:01:30]} Qa4 {[%emt 0:00:30]} 27. Qb1 {[%emt 0:00:30]} c5 {[%emt 0:07:30]} 28. dxc5 $11 {[%emt 0:02:30]} Nxe3 {[%emt 0:00:00]} 29. Rxe3 {[%emt 0:00:00]} Bxc5 {[%emt 0:00:00]} 30. Qe4 {[%emt 0:00:00]} Qxe4 {[%emt 0:00:30]} 31. Rxe4 {[%emt 0:00:30]} 1/2-1/2

[Event "World Junior U20 Open 2018"]
[Site "Gebze"]
[Date "2018.09.13"]
[Round "9.71"]
[White "Kwon, Sehyun"]
[Black "Dedebas, Emre Emin"]
[Result "0-1"]
[ECO "C54"]
[WhiteElo "2129"]
[BlackElo "2334"]
[Annotator "NA"]
[PlyCount "74"]
[EventDate "2018.09.05"]
[EventType "swiss"]
[EventCountry "TUR"]
[SourceTitle "playchess.com"]
[Source "ChessBase"]
[SourceQuality "1"]
[TimeControl "40/5400+30:1800+30"]

1. e4 {[%emt 0:00:30]} e5 {[%emt 0:00:30]} 2. Nf3 {[%emt 0:00:30]} Nc6 {[%emt 0:00:00]} 3. Bc4 {[%emt 0:00:00]} Bc5 {[%emt 0:00:00]} 4. d3 {[%emt 0:00:00]} Nf6 {[%emt 0:00:30]} 5. O-O {[%emt 0:00:30]} d6 {[%emt 0:00:00]} 6. c3 {[%emt 0:00:30]} h6 {[%emt 0:01:00]} 7. Re1 {[%emt 0:03:00]} O-O {[%emt 0:01:30] C54: Giuoco Piano: 4 c3 Nf6, main lines with 5 d4 and 5 d3} 8. Nbd2 {[%emt 0:02:30]} a5 {[%emt 0:01:30]} 9. Nf1 {[%emt 0:01:30]} Be6 {[%emt 0:13:30]} (9... Bb6 10. Be3 Bxe3 11. Nxe3 Be6 12. Bb5 Ne7 13. Ba4 Ng6 14. Bc2 Re8 15. d4 {1-0 (54) Vachier Lagrave,M (2789)-Caruana,F (2816) Paris 2018}) 10. Bb5 {[%emt 0:00:30]} Ne7 {[%emt 0:09:30]} 11. d4 {[%emt 0:02:30]} exd4 {[%emt 0:09:30]} 12. cxd4 {[%emt 0:01:30]} Bb4 {[%emt 0:09:30]} 13. Re2 {[%emt 0:04:30]} a4 {[%emt 0:08:30] [#]} 14. Bd3 $146 {[%emt 0:46:00]} a3 {[%emt 0:03:30]} 15. b3 {[%emt 0:01:30]} Bc3 {[%emt 0:05:30]} 16. Rb1 {[%emt 0:00:30]} Bg4 {[%emt 0:00:30]} 17. Bc2 {[%emt 0:01:30]} Nc6 {[%emt 0:03:00]} 18. Be3 {[%emt 0:56:00]} Nb4 {[%emt 0:00:30]} 19. Bd2 $17 {[%emt 0:06:30]} Bxd2 20. Qxd2 c5 21. Bd3 Nc6 {[%emt 1:20:30]} 22. d5 {[%emt 1:19:00]} Bxf3 {[%emt 0:00:30]} 23. gxf3 {[%emt 0:00:30]} Nd4 {[%emt 0:00:30]} 24. Re3 {[%emt 0:00:30]} Nh5 {[%emt 0:00:30]} 25. Ng3 {[%emt 0:01:30]} Nf4 {[%emt 0:08:11]} 26. Kh1 {[%emt 0:02:33]} Re8 {[%emt 0:02:05]} 27. Rg1 {[%emt 0:03:33]} Re5 {[%emt 0:03:05]} 28. Ree1 {[%emt 0:02:46]} Qh4 {[%emt 0:01:54]} 29. Nf5 {[%emt 0:04:58]} Rxf5 {[%emt 0:03:13]} 30. Rg4 {[%emt 0:01:03]} Nxf3 {[%emt 0:02:32]} 31. Rxh4 {[%emt 0:00:55]} Nxd2 {[%emt 0:00:04]} 32. exf5 {[%emt 0:03:19]} Nxd3 {[%emt 0:00:01]} 33. Ra4 {[%emt 0:03:59]} Rxa4 {[%emt 0:01:17]} 34. Re8+ {[%emt 0:00:34]} Kh7 {[%emt 0:00:30]} 35. bxa4 {[%emt 0:00:00]} c4 {[%emt 0:00:00]} 36. Re3 {[%emt 0:01:36]} Nb1 {[%emt 0:00:22]} 37. Re2 {[%emt 0:00:38]} c3 {[%emt 0:00:09]} 0-1

[Event "World Junior U20 Open 2018"]
[Site "Gebze"]
[Date "2018.09.13"]
[Round "9.72"]
[White "Jogstad, Martin"]
[Black "Zrikem, Nassim"]
[Result "1-0"]
[ECO "E11"]
[WhiteElo "2305"]
[BlackElo "2066"]
[Annotator "NA"]
[PlyCount "61"]
[EventDate "2018.09.05"]
[EventType "swiss"]
[EventCountry "TUR"]
[SourceTitle "playchess.com"]
[Source "ChessBase"]
[SourceQuality "1"]
[TimeControl "40/5400+30:1800+30"]

1. d4 {[%emt 0:00:30]} Nf6 {[%emt 0:00:30]} 2. c4 {[%emt 0:00:30]} e6 {[%emt 0:00:30]} 3. g3 {[%emt 0:00:00]} d5 {[%emt 0:00:00]} 4. Nf3 {[%emt 0:00:00]} Bb4+ {[%emt 0:00:00]} 5. Bd2 {[%emt 0:00:30]} Be7 {[%emt 0:00:00]} 6. Bg2 {[%emt 0:00:00]} O-O {[%emt 0:00:00]} 7. O-O {[%emt 0:00:00]} c6 {[%emt 0:00:30]} 8. Qc2 {[%emt 0:03:30]} Nbd7 {[%emt 0:00:30]} 9. Rd1 {[%emt 0:04:30]} b6 {[%emt 0:00:30]} 10. Nc3 {[%emt 0:02:30]} Ba6 {[%emt 0:01:30]} 11. b3 {[%emt 0:07:30]} Rc8 {[%emt 0:01:30] LiveBook: 21 Games} 12. Bc1 {[%emt 0:01:30]} c5 {[%emt 0:07:30]} 13. Bb2 {[%emt 0:09:30]} Qc7 {[%emt 0:18:30]} 14. cxd5 {[%emt 0:05:30]} exd5 {[%emt 0:08:30]} 15. Rac1 {[%emt 0:47:30]} Rfe8 {[%emt 0:09:30]} 16. dxc5 $16 {[%emt 0:04:30]} Bxc5 17. e3 Rxe3 18. fxe3 Bxe3+ 19. Kh1 Ne4 {[%emt 1:23:07]} 20. Bf1 {[%emt 1:28:59]} Bb7 {[%emt 0:13:29]} 21. Qe2 {[%emt 0:03:33]} Nf2+ {[%emt 0:01:02]} 22. Kg2 {[%emt 0:00:16]} Nxd1 {[%emt 0:00:25]} 23. Nxd5 {[%emt 0:00:53]} Qxc1 {[%emt 0:01:39]} 24. Bxc1 {[%emt 0:00:10]} Rxc1 {[%emt 0:01:45]} 25. Nxe3 {[%emt 0:00:31]} Ne5 {[%emt 0:00:31]} 26. Nd5 {[%emt 0:01:44]} f6 {[%emt 0:00:31]} 27. Qb5 {[%emt 0:03:54]} Nc6 {[%emt 0:00:30]} 28. Qd3 {[%emt 0:01:27]} Kf8 {[%emt 0:00:27]} 29. Be2 {[%emt 0:00:52]} Nb2 {[%emt 0:00:32]} 30. Qd2 {[%emt 0:01:11]} Rc5 {[%emt 0:00:22]} 31. Nf4 {[%emt 0:00:11]} 1-0

[Event "World Junior U20 Open 2018"]
[Site "Gebze"]
[Date "2018.09.13"]
[Round "9.73"]
[White "De Block, Yordi"]
[Black "Taalaibekov, Tagir"]
[Result "0-1"]
[ECO "A90"]
[WhiteElo "2118"]
[BlackElo "2291"]
[Annotator "NA"]
[PlyCount "106"]
[EventDate "2018.09.05"]
[EventType "swiss"]
[EventCountry "TUR"]
[SourceTitle "playchess.com"]
[Source "ChessBase"]
[SourceQuality "1"]
[TimeControl "40/5400+30:1800+30"]

1. d4 {[%emt 0:00:30]} e6 {[%emt 0:00:30]} 2. c4 {[%emt 0:00:30]} f5 {[%emt 0:00:00]} 3. Nf3 {[%emt 0:01:30]} Nf6 {[%emt 0:00:00]} 4. g3 {[%emt 0:00:00]} d5 {[%emt 0:00:30]} 5. Bg2 {[%emt 0:00:00]} c6 {[%emt 0:00:00]} 6. O-O {[%emt 0:00:30]} Bd6 {[%emt 0:00:00]} 7. b3 {[%emt 0:00:30]} O-O {[%emt 0:00:00]} 8. Bb2 {[%emt 0:00:00]} Bd7 {[%emt 0:00:00] A90: Dutch Defence: Miscellaneous and Modern Stonewall (with ...Bd6)} (8... b6 9. Nbd2 Bb7 10. Qc2 a5 11. Ne5 Na6 12. a3 Rc8 13. Ndf3 Ne4 14. Rad1 c5 15. dxc5 Naxc5 16. Nd3 Nxb3 17. Qxb3 dxc4 {½-½ (48) Tomilova,E (2309)-Charochkina,D (2366) Sochi 2016}) 9. Ne5 {[%emt 0:02:00]} a5 $146 {[%emt 0:05:30]} ({Predecessor:} 9... Be8 10. Nd2 Nbd7 11. Ndf3 Bh5 12. Qc2 Rc8 13. c5 Bb8 14. b4 Nxe5 15. dxe5 Ng4 16. h3 {1-0 (62) Moulain,J (2185)-Matoewi,R (2182) Dresden 2008}) 10. Nc3 {[%emt 0:05:30]} Be8 {[%emt 0:01:30]} 11. Qd3 {[%emt 0:03:30]} Ne4 {[%emt 0:08:30]} 12. cxd5 {[%emt 0:14:30]} exd5 {[%emt 0:03:30]} 13. Nxe4 {[%emt 0:03:30]} fxe4 {[%emt 0:00:30]} 14. Qd2 {[%emt 0:00:30]} Nd7 {[%emt 0:01:30]} 15. f3 {[%emt 0:03:30]} exf3 {[%emt 0:02:30]} 16. Rxf3 {[%emt 0:07:30]} Nxe5 {[%emt 0:02:30]} 17. dxe5 {[%emt 0:00:30]} Bc5+ {[%emt 0:00:30]} 18. Bd4 {[%emt 0:00:30]} Bxd4+ {[%emt 0:00:30]} 19. Qxd4 {[%emt 0:00:30]} Bh5 {[%emt 0:00:30]} 20. Rxf8+ {[%emt 0:00:30]} Qxf8 {[%emt 0:00:30]} 21. Rf1 {[%emt 0:00:30]} Qb4 {[%emt 0:00:30]} 22. Qe3 {[%emt 0:04:30]} Re8 {[%emt 0:03:30]} 23. e6 {[%emt 0:56:30]} Bg4 {[%emt 0:16:30]} 24. Rf4 {[%emt 0:02:30]} Qe1+ {[%emt 0:00:30]} 25. Bf1 {[%emt 0:00:30]} Bxe6 $17 {[%emt 0:01:00]} 26. Qb6 g5 27. Rf2 Qb4 28. Qc7 Qd4 {[%emt 1:08:00]} 29. Qd6 {[%emt 1:39:06]} Bf7 {[%emt 0:00:30]} 30. Qd7 {[%emt 0:00:30]} Bg6 {[%emt 0:00:30]} 31. Bh3 {[%emt 0:02:21]} Qe3 {[%emt 0:11:30]} 32. Qd6 {[%emt 0:01:44]} Qe7 {[%emt 0:01:30]} 33. Qxe7 {[%emt 0:01:42]} Rxe7 {[%emt 0:00:00]} 34. Kf1 {[%emt 0:00:31]} Kg7 {[%emt 0:00:00]} 35. Ke1 {[%emt 0:00:29]} Bb1 {[%emt 0:01:30]} 36. a3 {[%emt 0:00:24]} Re3 {[%emt 0:00:30]} 37. Rf3 {[%emt 0:00:00]} Rxf3 {[%emt 0:04:30]} 38. exf3 {[%emt 0:00:11]} Ba2 {[%emt 0:00:30]} 39. b4 {[%emt 0:00:30]} axb4 {[%emt 0:00:30]} 40. axb4 {[%emt 0:00:30]} b6 {[%emt 0:00:30]} 41. Kd2 {[%emt 0:30:30]} Kf6 {[%emt 0:30:30]} 42. Ke3 {[%emt 0:00:30]} c5 {[%emt 0:00:30]} 43. bxc5 {[%emt 0:00:30]} bxc5 {[%emt 0:00:30]} 44. Bd7 {[%emt 0:00:30]} Bb1 {[%emt 0:00:30]} 45. Bb5 {[%emt 0:00:30]} d4+ {[%emt 0:00:30]} 46. Kd2 {[%emt 0:00:30]} Ke5 {[%emt 0:00:30]} 47. Bc4 {[%emt 0:00:30]} Bf5 {[%emt 0:00:00]} 48. Be2 {[%emt 0:00:00]} Be6 {[%emt 0:00:00]} 49. Bd3 {[%emt 0:00:00]} h6 {[%emt 0:00:00]} 50. h4 {[%emt 0:00:00]} c4 {[%emt 0:00:00]} 51. hxg5 {[%emt 0:00:00]} hxg5 {[%emt 0:00:00]} 52. Bc2 {[%emt 0:00:00]} c3+ {[%emt 0:00:00]} 53. Kc1 {[%emt 0:00:00]} Bd5 {[%emt 0:00:00]} 0-1

[Event "World Junior U20 Open 2018"]
[Site "Gebze"]
[Date "2018.09.13"]
[Round "9.74"]
[White "Gulden, Egemen"]
[Black "Kara, Yanki"]
[Result "1/2-1/2"]
[ECO "B06"]
[WhiteElo "2068"]
[BlackElo "2262"]
[Annotator "NA"]
[PlyCount "51"]
[EventDate "2018.09.05"]
[EventType "swiss"]
[EventCountry "TUR"]
[SourceTitle "playchess.com"]
[Source "ChessBase"]
[SourceQuality "1"]
[TimeControl "40/5400+30:1800+30"]

1. e4 {[%emt 0:00:30]} g6 {[%emt 0:00:30]} 2. d4 {[%emt 0:00:30]} Bg7 {[%emt 0:00:30]} 3. Nc3 {[%emt 0:00:30]} d6 {[%emt 0:00:00]} 4. f4 {[%emt 0:00:30]} a6 {[%emt 0:00:00]} 5. a4 {[%emt 0:00:30]} Nc6 {[%emt 0:00:00] B06: Modern Defence} 6. Nf3 {[%emt 0:03:30]} Bg4 {[%emt 0:00:00]} 7. Be3 {[%emt 0:02:30]} Bxf3 {[%emt 0:00:00]} 8. gxf3 {[%emt 0:00:30]} d5 {[%emt 0:00:00]} 9. e5 {[%emt 0:07:30]} e6 {[%emt 0:02:30]} 10. h4 {[%emt 0:03:30]} h5 {[%emt 0:01:30]} 11. Ne2 $146 {[%emt 0:05:30]} ({Predecessor:} 11. Qd2 Nh6 12. Bd3 Bf8 13. Na2 {0-1 (34) Barskij,A-Hillarp Persson,T (2438) Recklinghausen 2001}) 11... Bf8 {[%emt 0:30:30]} 12. f5 {[%emt 0:09:30]} exf5 {[%emt 0:01:30]} 13. Nf4 {[%emt 0:01:30]} Bh6 {[%emt 0:01:30]} 14. Qd2 {[%emt 0:02:30]} Bxf4 {[%emt 0:02:30]} 15. Bxf4 {[%emt 0:00:30]} Qd7 {[%emt 0:00:30]} 16. Be3 {[%emt 0:06:30]} Nd8 {[%emt 0:42:00]} 17. b3 {[%emt 0:00:30]} Ne6 {[%emt 0:00:30]} 18. Be2 {[%emt 0:08:30]} Ne7 {[%emt 0:01:30]} 19. c3 {[%emt 0:01:30]} Rc8 $15 {[%emt 0:02:30]} 20. b4 {[%emt 1:08:00]} Rd8 {[%emt 0:49:00]} 21. Bd3 {[%emt 0:00:30]} Nc8 {[%emt 0:07:30]} 22. Kf2 {[%emt 0:05:30]} Ne7 {[%emt 0:15:30]} 23. Be2 {[%emt 0:00:30]} Nc8 {[%emt 0:00:30]} 24. Bd3 {[%emt 0:00:30]} Ne7 {[%emt 0:00:30]} 25. Be2 {[%emt 0:00:30]} Nc8 {[%emt 0:00:30]} 26. Bd3 {[%emt 0:00:30]} 1/2-1/2

[Event "World Junior U20 Open 2018"]
[Site "Gebze"]
[Date "2018.09.13"]
[Round "9.75"]
[White "Dionizio, Andre Filipe Nascim"]
[Black "Tuna, Alp"]
[Result "0-1"]
[ECO "B10"]
[WhiteElo "2010"]
[BlackElo "2253"]
[Annotator "NA"]
[PlyCount "66"]
[EventDate "2018.09.05"]
[EventType "swiss"]
[EventCountry "TUR"]
[SourceTitle "playchess.com"]
[Source "ChessBase"]
[SourceQuality "1"]
[TimeControl "40/5400+30:1800+30"]

1. e4 {[%emt 0:01:30]} c6 {[%emt 0:00:30]} 2. d3 {[%emt 0:00:30]} d5 {[%emt 0:00:30]} 3. Nd2 {[%emt 0:00:30]} e5 {[%emt 0:00:00]} 4. Ngf3 {[%emt 0:00:00]} Bd6 {[%emt 0:00:00]} 5. d4 {[%emt 0:00:00]} exd4 {[%emt 0:00:30]} 6. exd5 {[%emt 0:00:30]} cxd5 {[%emt 0:00:30]} 7. Nxd4 {[%emt 0:00:00]} Nc6 {[%emt 0:00:30]} 8. N2f3 {[%emt 0:00:30] B10: Caro-Kann: 2 d3 and 2 c4} Nf6 {[%emt 0:01:00]} 9. Be2 {[%emt 0:00:30]} O-O {[%emt 0:00:30]} (9... h6 10. O-O O-O 11. h3 Re8 12. c3 a6 13. Re1 Bd7 14. Bd2 Qc7 15. Bf1 Ne4 16. Be3 Rad8 17. Nxc6 bxc6 18. Bxa6 {1-0 (35) Smirin,I (2652)-Sasikiran,K (2682) Tsaghkadzor 2015}) 10. O-O {[%emt 0:00:30]} Re8 {[%emt 0:03:30]} 11. Bg5 {[%emt 0:05:30]} h6 $146 {[%emt 0:01:30]} ({Predecessor:} 11... Nxd4 12. Nxd4 h6 13. Be3 Bd7 14. Nb5 Be5 15. c3 Qa5 16. Nd4 Ba4 17. Qd3 Rac8 18. Nf5 Bd7 19. Rfe1 Bxf5 20. Qxf5 d4 21. cxd4 Bxh2+ {0-1 (21) Page,J-Evans,D England 2000}) 12. Bh4 {[%emt 0:01:30]} g5 {[%emt 0:00:30]} 13. Bg3 {[%emt 0:02:30]} Ne4 {[%emt 0:03:30]} 14. c4 {[%emt 0:13:30]} Nxg3 {[%emt 0:09:30]} 15. hxg3 {[%emt 0:01:30]} Nxd4 {[%emt 0:07:30]} 16. Nxd4 {[%emt 0:00:30]} Be5 {[%emt 0:02:30]} 17. Nf3 {[%emt 0:05:00]} Bxb2 {[%emt 0:01:30]} 18. Rb1 {[%emt 0:01:30]} Bg7 {[%emt 0:05:30]} 19. cxd5 {[%emt 0:01:30]} Qd6 {[%emt 0:00:30]} 20. Bc4 {[%emt 0:02:30]} b6 {[%emt 1:02:00]} 21. Qd3 {[%emt 0:54:30]} Bd7 {[%emt 0:00:30]} 22. Nd2 {[%emt 0:01:30]} Qe5 $15 {[%emt 0:03:30]} 23. Rfe1 Qxe1+ 24. Rxe1 Rxe1+ 25. Kh2 Rae8 26. Qa3 b5 {[%emt 1:20:00]} 27. Bd3 {[%emt 1:19:30]} Rd1 {[%emt 0:05:52]} 28. Ne4 {[%emt 0:02:30]} g4 {[%emt 0:01:49]} 29. Bc2 {[%emt 0:03:48]} Rxd5 {[%emt 0:04:16]} 30. Qxa7 {[%emt 0:02:52]} Bf5 {[%emt 0:01:18]} 31. f3 {[%emt 0:02:35]} Bxe4 {[%emt 0:00:30]} 32. Bxe4 {[%emt 0:00:12]} Bd4 {[%emt 0:00:36]} 33. Bh7+ {[%emt 0:02:20]} Kg7 {[%emt 0:00:07]} 0-1

[Event "World Junior U20 Open 2018"]
[Site "Gebze"]
[Date "2018.09.13"]
[Round "9.76"]
[White "Kilic, Gokturk Kagan"]
[Black "Tarlabasi, Emirhan"]
[Result "0-1"]
[ECO "C17"]
[WhiteElo "1910"]
[BlackElo "2193"]
[Annotator "NA"]
[PlyCount "88"]
[EventDate "2018.09.05"]
[EventType "swiss"]
[EventCountry "TUR"]
[SourceTitle "playchess.com"]
[Source "ChessBase"]
[SourceQuality "1"]
[TimeControl "40/5400+30:1800+30"]

1. e4 {[%emt 0:00:30]} e6 {[%emt 0:00:30]} 2. d4 {[%emt 0:01:30]} d5 {[%emt 0:00:00]} 3. Nc3 {[%emt 0:00:30]} Bb4 {[%emt 0:00:00]} 4. e5 {[%emt 0:00:30]} c5 {[%emt 0:00:30]} 5. Bd2 {[%emt 0:02:30]} Ne7 {[%emt 0:01:30]} 6. Nb5 {[%emt 0:02:30]} Bxd2+ {[%emt 0:00:30]} 7. Qxd2 {[%emt 0:00:30]} O-O {[%emt 0:00:00]} 8. f4 {[%emt 0:02:30]} b6 {[%emt 0:04:30]} 9. Nf3 {[%emt 0:14:30]} Ba6 {[%emt 0:03:30]} 10. c3 {[%emt 0:07:30]} Qd7 $11 {[%emt 0:02:30]} 11. Nd6 Bxf1 12. Rxf1 Nbc6 13. Kf2 f5 14. Kg1 c4 15. Qf2 Nc8 16. Nxc8 Rfxc8 17. Qh4 Ne7 18. g4 Rf8 19. g5 g6 20. Qf2 b5 21. h4 Kg7 22. Qh2 Rh8 23. h5 {[%emt 1:40:16]} a5 {[%emt 0:57:30]} 24. Kg2 {[%emt 0:00:30]} b4 {[%emt 0:00:30]} 25. Kg3 {[%emt 0:00:30]} Rab8 {[%emt 0:00:30]} 26. Rh1 {[%emt 0:00:30]} Qa4 {[%emt 0:00:30]} 27. cxb4 {[%emt 0:01:07]} Qxb4 {[%emt 0:09:30]} 28. Rab1 {[%emt 0:00:32]} a4 {[%emt 0:01:30]} 29. Qc2 {[%emt 0:00:28]} Kf7 {[%emt 0:06:30]} 30. Qh2 {[%emt 0:00:28]} Rhg8 {[%emt 0:05:30]} 31. Qc2 {[%emt 0:00:20]} Ke8 {[%emt 0:02:30]} 32. Rh2 {[%emt 0:00:44]} Kd7 {[%emt 0:01:30]} 33. Rhh1 {[%emt 0:00:17]} Rgc8 {[%emt 0:01:02]} 34. hxg6 {[%emt 0:00:37]} hxg6 {[%emt 0:00:30]} 35. Rh7 {[%emt 0:00:25]} a3 {[%emt 0:03:01]} 36. Nh4 {[%emt 0:00:31]} Rg8 {[%emt 0:12:13]} 37. b3 {[%emt 0:00:37]} cxb3 {[%emt 0:02:25]} 38. Rxb3 {[%emt 0:00:06]} Qe1+ {[%emt 0:00:38]} 39. Kg2 {[%emt 0:00:24]} Rgc8 {[%emt 0:02:26]} 40. Qd3 {[%emt 0:00:00]} Rxb3 {[%emt 0:00:00]} 41. axb3 {[%emt 0:06:08]} Qa5 {[%emt 0:28:18]} 42. b4 {[%emt 0:22:38]} Qxb4 {[%emt 0:01:29]} 43. Qa6 {[%emt 0:00:33]} Rc2+ {[%emt 0:01:10]} 44. Kg3 {[%emt 0:01:38]} Qe1+ {[%emt 0:00:05]} 0-1